bitfinex/quotes_SOLUSD_20251214
["timestamp","ask_amount","ask_price","bid_price","bid_amount"]
[1765737364060,0.7,130.34,130.32,10.88760849]
[1765737364763,0.7,130.34,130.32,11.53760849]
[1765737365287,0.7,130.34,130.32,10.88760849]
[1765737368962,0.7,130.34,130.32,19.28760849]
[1765737372263,8.37225452,130.34,130.3,8.4]
[1765737372483,8.37225452,130.34,130.3,16.07449779]
[1765737372798,0.71,130.33,130.31,10.88828874]
[1765737373296,0.71,130.33,130.31,11.57828874]
[1765737373608,112.37123522,130.36,130.32,19.97770226]
[1765737373896,0.71,130.35,130.33,3.21428299]
[1765737374693,0.71,130.35,130.32,19.97770226]
[1765737374996,0.71,130.35,130.32,19.28770226]
[1765737376253,0.71,130.35,130.32,10.88770226]
[1765737376491,0.71,130.35,130.27,7.77590921]
[1765737376492,13.0470912,130.32,130.27,7.77590921]
[1765737376685,16.26137419,130.32,130.27,7.67590921]
[1765737376991,0.71,130.31,130.27,7.67590921]
[1765737377565,8.38449248,130.31,130.27,16.07590921]
[1765737378080,0.71,130.3,130.27,16.07590921]
[1765737379367,0.71,130.3,130.27,16.76590921]
[1765737380793,8.38467318,130.3,130.27,16.76590921]
[1765737381164,0.71,130.29,130.27,16.76590921]
[1765737384899,10.88829112,130.31,130.27,16.76590921]
[1765737385194,0.71,130.29,130.27,16.76590921]
[1765737389019,0.71,130.29,130.27,8.4]
[1765737389299,0.71,130.29,130.27,9.1]
[1765737390020,0.71,130.29,130.27,16.77628663]
[1765737390797,8.385513,130.29,130.25,0.7]
[1765737391098,11.59979599,130.29,130.26,8.4]
[1765737391305,0.67,130.28,130.26,8.4]
[1765737393612,0.67,130.31,130.27,3.91428299]
[1765737394020,0.67,130.31,130.28,0.7]
[1765737394313,0.67,130.31,130.28,8.37572158]
[1765737394513,0.67,130.33,130.29,8.4]
[1765737394812,0.67,130.33,130.3,0.7]
[1765737395711,0.67,130.33,130.3,8.37446468]
[1765737395917,7.67189921,130.35,130.31,0.7]
[1765737396098,0.67,130.34,130.31,0.7]
[1765737396902,0.67,130.34,130.31,8.37384232]
[1765737398850,20.71840682,130.36,130.32,9.1]
[1765737399003,0.67,130.35,130.32,9.1]
[1765737400112,0.67,130.35,130.32,8.4]
[1765737400615,0.67,130.35,130.32,9.1]
[1765737400823,0.67,130.35,130.32,16.77321198]
[1765737401122,0.67,130.35,130.32,16.07321198]
[1765737401750,8.33950846,130.39,130.34,3.21447353]
[1765737401914,0.77,130.4,130.36,3.21447353]
[1765737402107,13.7170912,130.4,130.36,3.21447353]
[1765737402431,13.7170912,130.4,130.37,0.7]
[1765737402836,0.67,130.4,130.37,0.7]
[1765737403514,0.67,130.4,130.37,8.37045906]
[1765737404115,0.67,130.4,130.38,9.1]
[1765737407640,0.2,130.41,130.38,9.1]
[1765737407641,0.2,130.41,130.39,0.7]
[1765737407812,0.87,130.41,130.39,0.7]
[1765737408129,0.2,130.41,130.39,0.7]
[1765737408723,0.2,130.41,130.39,8.36915464]
[1765737408924,0.2,130.41,130.4,0.7]
[1765737410444,0.2,130.41,130.4,8.36871165]
[1765737411118,0.2,130.41,130.4,7.66871165]
[1765737411532,0.2,130.41,130.4,8.36871165]
[1765737412446,0.2,130.41,130.4,7.66871165]
[1765737412616,0.2,130.41,130.4,8.36871165]
[1765737413937,0.2,130.41,130.4,10.42409735]
[1765737414145,0.2,130.41,130.4,23.47118855]
[1765737421434,0.2,130.41,130.4,8.38871165]
[1765737421635,0.2,130.41,130.4,10.44409735]
[1765737423638,0.2,130.41,130.4,18.84409735]
[1765737424042,0.2,130.41,130.4,16.78871165]
[1765737424245,0.86,130.41,130.39,7.66915741]
[1765737424425,0.86,130.41,130.39,16.06915741]
[1765737424628,0.66,130.4,130.39,16.06915741]
[1765737426747,0.2,130.41,130.39,18.84454311]
[1765737426924,0.2,130.41,130.4,2.7753857]
[1765737427934,0.2,130.41,130.4,10.44409735]
[1765737429853,0.2,130.41,130.4,19.25404227]
[1765737430027,0.2,130.44,130.41,8.80994492]
[1765737430230,0.2,130.44,130.43,2.0553857]
[1765737430439,0.2,130.44,130.43,2.7753857]
[1765737431259,0.2,130.44,130.43,10.44233348]
[1765737435086,0.2,130.44,130.42,7.66732445]
[1765737435087,0.86,130.44,130.42,7.66732445]
[1765737435366,0.86,130.44,130.39,19.17260937]
[1765737435367,0.86,130.44,130.41,7.66804594]
[1765737435574,0.66,130.43,130.41,7.66804594]
[1765737446503,2.71440777,130.43,130.37,19.84577506]
[1765737446701,8.32699716,130.43,130.38,11.12440777]
[1765737446880,0.7,130.42,130.38,11.12440777]
[1765737447205,0.7,130.42,130.39,7.66929979]
[1765737447804,0.7,130.42,130.39,8.33929979]
[1765737447978,0.7,130.42,130.39,10.39370756]
[1765737448180,0.7,130.43,130.4,0.67]
[1765737448479,0.7,130.43,130.4,9.07]
[1765737449289,0.7,130.43,130.41,7.66812361]
[1765737451187,8.36705759,130.43,130.4,8.4]
[1765737451684,0.7,130.43,130.4,16.73856215]
[1765737451889,0.7,130.43,130.4,18.79296992]
[1765737453511,0.7,130.43,130.41,0.67]
[1765737454011,0.7,130.43,130.4,37.96474906]
[1765737455812,0.2,130.44,130.41,8.33760517]
[1765737456107,0.9,130.44,130.41,8.33760517]
[1765737458102,0.9,130.44,130.42,16.73739401]
[1765737458485,0.9,130.44,130.42,16.06739401]
[1765737464913,0.9,130.44,130.42,16.73739401]
[1765737465121,0.9,130.44,130.42,16.06739401]
[1765737466430,0.7,130.43,130.42,16.06739401]
[1765737467125,0.2,130.44,130.42,16.73739401]
[1765737467315,0.2,130.44,130.43,0.67]
[1765737467915,0.9,130.44,130.42,8.33739401]
[1765737468116,0.9,130.44,130.42,8.4]
[1765737468427,3.90960324,130.43,130.36,0.1]
[1765737468592,3.20960324,130.39,130.35,16.74117143]
[1765737469098,0.7,130.38,130.35,16.74117143]
[1765737469722,0.7,130.38,130.36,0.67]
[1765737469914,0.7,130.4,130.36,0.67]
[1765737470090,0.7,130.39,130.37,8.4]
[1765737470511,0.7,130.39,130.37,9.07]
[1765737471021,0.7,130.4,130.37,9.07]
[1765737471214,0.7,130.4,130.37,16.07002154]
[1765737472728,0.7,130.4,130.37,16.74002154]
[1765737474902,0.7,130.4,130.37,8.4]
[1765737474903,11.58085553,130.4,130.37,8.4]
[1765737475315,0.7,130.39,130.37,8.4]
[1765737476126,0.7,130.39,130.37,16.07041299]
[1765737477413,0.7,130.39,130.37,16.76041299]
[1765737480236,0.7,130.39,130.37,8.4]
[1765737480617,0.7,130.39,130.37,9.09]
[1765737481333,0.7,130.39,130.37,16.76041246]
[1765737482742,0.7,130.39,130.37,9.09]
[1765737483242,0.7,130.39,130.37,16.76038353]
[1765737483410,0.71,130.41,130.38,0.69]
[1765737483830,0.71,130.41,130.38,3.90205127]
[1765737484134,19.27936253,130.43,130.39,9.09]
[1765737484330,0.71,130.42,130.39,9.09]
[1765737484534,0.71,130.42,130.4,0.69]
[1765737484838,0.71,130.43,130.41,7.66812361]
[1765737486238,0.2,130.44,130.41,7.66812361]
[1765737486444,0.91,130.44,130.41,8.35812361]
[1765737486613,0.2,130.44,130.41,7.66812361]
[1765737486812,0.2,130.44,130.43,7.66694778]
[1765737487838,0.91,130.44,130.43,7.66694778]
[1765737488339,0.91,130.44,130.42,8.35728687]
[1765737488835,0.91,130.44,130.38,0.79]
[1765737488836,3.92205127,130.43,130.38,0.79]
[1765737489038,0.71,130.43,130.4,7.66836171]
[1765737489338,0.71,130.42,130.4,8.35836171]
[1765737489837,20.91347578,130.44,130.41,7.66812361]
[1765737489838,0.2,130.44,130.41,7.66812361]
[1765737490033,8.57643323,130.44,130.41,0.69]
[1765737490439,0.71,130.43,130.41,0.69]
[1765737490749,0.71,130.43,130.39,30.05403663]
[1765737491135,0.71,130.43,130.39,30.74403663]
[1765737492142,0.71,130.43,130.39,30.05403663]
[1765737492318,0.71,130.43,130.4,0.69]
[1765737493453,0.71,130.43,130.4,8.35861842]
[1765737497855,0.71,130.43,130.4,11.57066969]
[1765737498456,0.71,130.43,130.4,19.97066969]
[1765737499256,0.2,130.44,130.41,0.69]
[1765737499954,0.91,130.44,130.41,0.69]
[1765737500361,0.91,130.44,130.41,8.35772426]
[1765737501241,0.2,130.44,130.42,0.69]
[1765737501454,0.91,130.44,130.42,0.69]
[1765737501755,0.91,130.44,130.42,9.09]
[1765737504234,0.71,130.43,130.41,7.66785443]
[1765737504457,0.71,130.43,130.41,16.06785443]
[1765737504836,0.71,130.43,130.4,7.66853373]
[1765737510266,0.71,130.43,130.4,8.33853373]
[1765737513174,0.71,130.43,130.4,7.66853373]
[1765737513355,0.2,130.44,130.41,12.28078835]
[1765737513753,0.2,130.44,130.42,0.67]
[1765737514447,0.2,130.44,130.42,8.33708204]
[1765737515867,0.2,130.44,130.43,0.67]
[1765737517072,0.2,130.44,130.42,0.67]
[1765737518170,0.2,130.44,130.43,8.4]
[1765737518369,0.2,130.44,130.43,11.61078835]
[1765737518569,0.2,130.44,130.43,12.28078835]
[1765737519581,0.2,130.44,130.43,21.09073327]
[1765737520571,0.2,130.44,130.43,28.75768105]
[1765737521456,0.2,130.44,130.43,28.89984262]
[1765737521656,1e-08,130.44,130.43,29.66653739]
[1765737523667,1e-08,130.44,130.43,29.80869896]
[1765737523863,1e-08,130.45,130.44,0.67]
[1765737524073,1e-08,130.45,130.44,12.97505641]
[1765737525380,1e-08,130.45,130.44,20.64141642]
[1765737526082,1e-08,130.45,130.44,33.68850762]
[1765737527461,1e-08,130.45,130.44,32.53003987]
[1765737528663,1e-08,130.45,130.44,35.59834808]
[1765737529463,1e-08,130.45,130.44,10.38868061]
[1765737539098,1e-08,130.45,130.44,18.78868061]
[1765737539602,0.70000001,130.45,130.44,16.06636001]
[1765737548982,0.70000001,130.45,130.44,8.4]
[1765737549184,0.70000001,130.45,130.43,7.66693775]
[1765737552819,2.75364622,130.45,130.39,19.17245403]
[1765737553108,2.75364622,130.45,130.41,7.66776357]
[1765737553109,10.41962361,130.45,130.41,7.66776357]
[1765737553306,0.7,130.44,130.41,7.66776357]
[1765737556320,10.42026167,130.44,130.4,7.66852376]
[1765737556814,0.7,130.43,130.4,10.38216997]
[1765737557112,0.7,130.43,130.4,8.32852376]
[1765737558388,0.7,130.43,130.4,7.66852376]
[1765737560512,0.7,130.43,130.4,16.06852376]
[1765737563811,0.7,130.43,130.4,16.72852376]
[1765737565013,0.70000001,130.45,130.41,2.71364621]
[1765737565224,0.70000001,130.45,130.42,10.45364621]
[1765737565516,0.70000001,130.45,130.42,11.11364621]
[1765737565816,1e-08,130.45,130.43,0.66]
[1765737566013,1e-08,130.45,130.44,8.4]
[1765737566220,1e-08,130.45,130.44,10.45364621]
[1765737566520,1e-08,130.45,130.44,9.12]
[1765737566900,1e-08,130.45,130.44,8.4]
[1765737567106,0.71000001,130.45,130.44,16.06636001]
[1765737569404,1e-08,130.45,130.44,16.72636001]
[1765737569619,1e-08,130.45,130.44,18.78000622]
[1765737570623,1e-08,130.45,130.44,16.72636001]
[1765737571025,1e-08,130.45,130.44,8.4]
[1765737571027,0.71000001,130.45,130.44,8.4]
[1765737571407,0.71000001,130.45,130.44,16.06636001]
[1765737572329,1e-08,130.45,130.44,16.06636001]
[1765737573395,0.71000001,130.45,130.44,16.06636001]
[1765737574919,1e-08,130.45,130.44,16.72636001]
[1765737581916,1e-08,130.45,130.44,18.77988078]
[1765737585642,0.71000001,130.45,130.44,7.66636001]
[1765737586438,1e-08,130.45,130.44,7.66636001]
[1765737586648,1e-08,130.45,130.44,19.92346569]
[1765737586941,1e-08,130.45,130.44,22.99200928]
[1765737587741,1e-08,130.45,130.44,30.65836929]
[1765737587946,1e-08,130.45,130.44,30.94269243]
[1765737589430,1e-08,130.45,130.44,32.09565306]
[1765737605469,1e-08,130.45,130.44,27.94484852]
[1765737605636,1e-08,130.45,130.44,31.15132992]
[1765737606256,1e-08,130.45,130.44,31.82132992]
[1765737608564,1e-08,130.45,130.44,28.61484852]
[1765737608733,1e-08,130.45,130.44,31.82132992]
[1765737616276,1e-08,130.45,130.44,31.82192893]
[1765737618570,1e-08,130.45,130.44,31.15192893]
[1765737618881,0.68000001,130.45,130.44,27.94484852]
[1765737619094,0.68000001,130.45,130.44,19.27344042]
[1765737621262,0.68000001,130.45,130.44,16.06636001]
[1765737621570,0.68000001,130.45,130.44,7.66636001]
[1765737623382,0.68000001,130.45,130.43,3.20708041]
[1765737623671,0.68000001,130.45,130.44,7.66636001]
[1765737625476,0.68000001,130.45,130.43,7.66694778]
[1765737625678,0.68000001,130.45,130.43,10.87402819]
[1765737626677,0.68000001,130.45,130.43,7.66694778]
[1765737626874,0.68000001,130.45,130.43,10.87402819]
[1765737628483,0.68000001,130.45,130.44,16.06636001]
[1765737629086,1e-08,130.45,130.44,19.27344042]
[1765737636089,1e-08,130.45,130.44,19.96344042]
[1765737639185,1e-08,130.45,130.44,19.27344042]
[1765737642381,1e-08,130.45,130.44,16.06636001]
[1765737642583,1e-08,130.45,130.44,19.27344042]
[1765737644382,1e-08,130.45,130.44,16.06636001]
[1765737644610,1e-08,130.45,130.44,19.27344042]
[1765737645769,0.65000001,130.45,130.44,19.27344042]
[1765737647503,0.65000001,130.45,130.44,16.06636001]
[1765737647696,0.65000001,130.45,130.44,19.27344042]
[1765737649401,0.65000001,130.45,130.44,18.11969189]
[1765737652308,0.65000001,130.45,130.44,18.11954085]
[1765737653104,1e-08,130.45,130.44,18.80954085]
[1765737653407,0.65000001,130.45,130.44,18.11954085]
[1765737655404,0.65000001,130.45,130.44,16.06636001]
[1765737661634,0.65000001,130.45,130.44,8.4]
[1765737662818,0.65000001,130.45,130.42,7.66728329]
[1765737663012,0.65000001,130.45,130.42,16.06728329]
[1765737671248,0.65000001,130.45,130.42,7.66728329]
[1765737671438,0.65000001,130.45,130.42,16.06728329]
[1765737672616,0.65000001,130.45,130.42,16.78728329]
[1765737673018,0.65000001,130.45,130.42,18.84046413]
[1765737674273,0.65000001,130.45,130.42,16.06728329]
[1765737680153,0.65000001,130.45,130.42,16.78728329]
[1765737680652,8.31582395,130.45,130.42,8.4]
[1765737680945,2.05318084,130.44,130.38,9.12]
[1765737681121,2.71318084,130.43,130.38,9.12]
[1765737681321,2.71318084,130.43,130.38,8.4]
[1765737681518,15.76027204,130.42,130.38,8.4]
[1765737682130,0.66,130.41,130.37,7.66991559]
[1765737682739,10.38170545,130.41,130.37,7.66991559]
[1765737682920,2.05318084,130.4,130.36,8.4]
[1765737683132,2.71318084,130.4,130.36,8.4]
[1765737683346,0.66,130.39,130.36,8.4]
[1765737684929,8.32947076,130.39,130.35,7.67127574]
[1765737685349,0.66,130.38,130.35,7.67127574]
[1765737687738,0.66,130.38,130.34,16.07203727]
[1765737687739,8.33007563,130.38,130.34,16.07203727]
[1765737687947,10.38325647,130.38,130.34,16.07203727]
[1765737688267,0.66,130.37,130.34,8.4]
[1765737689862,8.33090633,130.37,130.34,8.4]
[1765737690371,0.66,130.36,130.34,8.4]
[1765737690859,0.66,130.36,130.32,7.67324304]
[1765737691063,2.7169758,130.36,130.31,16.0738054]
[1765737691446,0.66,130.35,130.31,16.0738054]
[1765737692358,8.33175159,130.35,130.31,16.0738054]
[1765737693066,0.66,130.34,130.31,8.4]
[1765737693356,0.66,130.34,130.3,7.87443666]
[1765737693357,0.66,130.34,130.3,0.2]
[1765737693662,0.66,130.34,130.3,7.87458485]
[1765737694151,8.33268548,130.34,130.3,7.87458485]
[1765737694676,0.66,130.33,130.3,7.87458485]
[1765737695237,0.66,130.34,130.31,0.69]
[1765737696160,0.66,130.34,130.31,8.36359691]
[1765737696334,0.66,130.34,130.31,7.67359691]
[1765737696535,8.33228309,130.34,130.3,7.87433818]
[1765737696758,8.33228309,130.34,130.3,8.56433818]
[1765737696954,0.66,130.33,130.3,0.2]
[1765737698566,8.33287738,130.33,130.3,0.2]
[1765737699047,0.66,130.32,130.3,0.2]
[1765737704372,8.33342074,130.32,130.3,0.2]
[1765737704573,10.39039654,130.32,130.3,0.2]
[1765737704774,0.66,130.31,130.3,0.2]
[1765737708775,104.7,130.34,130.3,8.56459708]
[1765737709079,16.73211596,130.35,130.31,0.69]
[1765737709080,8.33211596,130.35,130.31,0.69]
[1765737709380,0.66,130.34,130.31,0.69]
[1765737710061,0.66,130.34,130.31,8.36343026]
[1765737711186,0.66,130.34,130.31,16.76343026]
[1765737712886,12.37920716,130.36,130.31,16.76343026]
[1765737714403,7.67211596,130.35,130.31,16.76343026]
[1765737714965,8.33211596,130.35,130.31,16.76343026]
[1765737715976,8.33211596,130.35,130.31,16.07343026]
[1765737716181,12.37920716,130.36,130.32,0.69]
[1765737716403,12.37920716,130.36,130.32,3.90464838]
[1765737716699,12.37920716,130.36,130.33,0.66]
[1765737716895,13.09920716,130.36,130.33,0.66]
[1765737717472,13.09920716,130.36,130.34,7.67224182]
[1765737717678,21.4470912,130.39,130.34,7.67224182]
[1765737717999,0.72,130.38,130.35,0.66]
[1765737719501,0.72,130.38,130.35,8.33159741]
[1765737720169,0.72,130.39,130.36,0.66]
[1765737720406,8.38882827,130.4,130.36,0.66]
[1765737720598,21.43591947,130.4,130.36,0.66]
[1765737721375,21.43591947,130.4,130.36,8.33064417]
[1765737723172,13.7670912,130.4,130.37,0.66]
[1765737723374,13.0470912,130.4,130.37,0.66]
[1765737723711,7.66835332,130.41,130.37,0.66]
[1765737724015,117.7470912,130.42,130.37,12.27464838]
[1765737724307,118.4670912,130.42,130.38,0.66]
[1765737725108,117.7470912,130.42,130.38,0.66]
[1765737725425,126.13474982,130.42,130.38,8.32943045]
[1765737726800,8.38830982,130.41,130.37,16.0702443]
[1765737727107,11.59949698,130.41,130.37,8.4]
[1765737727409,0.72,130.4,130.36,8.3308072]
[1765737729204,8.38874463,130.4,130.36,8.3308072]
[1765737732222,0.72,130.39,130.36,8.3308072]
[1765737732808,0.72,130.39,130.36,7.6708072]
[1765737733119,0.72,130.39,130.37,8.33045712]
[1765737733410,118.4670912,130.42,130.37,8.33045712]
[1765737733715,11.69713166,130.45,130.39,3.21118716]
[1765737733906,0.72,130.44,130.39,3.21118716]
[1765737734215,0.72,130.44,130.4,0.66]
[1765737736084,8.38637957,130.44,130.4,8.32823316]
[1765737736494,0.72,130.43,130.4,8.32823316]
[1765737736700,21.43301965,130.45,130.41,0.66]
[1765737737434,0.72,130.44,130.4,7.66823316]
[1765737737608,0.72,130.44,130.4,8.32823316]
[1765737737995,8.38643833,130.44,130.4,8.32823316]
[1765737738396,0.72,130.43,130.4,8.32823316]
[1765737739723,7.66643833,130.44,130.4,7.66823316]
[1765737740029,8.38643833,130.44,130.41,0.66]
[1765737740232,7.66643833,130.44,130.4,7.66823316]
[1765737740403,0.72,130.43,130.4,8.32823316]
[1765737741929,8.38711421,130.43,130.39,8.32903651]
[1765737742296,8.38711421,130.43,130.4,0.66]
[1765737752555,0.7,130.42,130.38,8.3596704]
[1765737752738,0.7,130.42,130.39,8.35929611]
[1765737752914,3.91118716,130.42,130.37,0.69]
[1765737753229,3.21118716,130.41,130.37,0.69]
[1765737753428,3.91118716,130.41,130.37,8.36044651]
[1765737753646,0.7,130.4,130.37,8.36044651]
[1765737753943,8.36871513,130.4,130.37,8.36044651]
[1765737761853,0.7,130.41,130.38,0.69]
[1765737762023,13.0470912,130.42,130.38,0.69]
[1765737762227,13.0470912,130.42,130.38,3.90207513]
[1765737762551,13.7470912,130.42,130.38,3.90207513]
[1765737762855,13.7470912,130.42,130.39,0.69]
[1765737763527,7.66726158,130.43,130.39,11.5711805]
[1765737763724,8.36726158,130.43,130.4,0.69]
[1765737764553,0.7,130.42,130.39,7.66910537]
[1765737764754,0.7,130.42,130.39,8.35910537]
[1765737765530,8.36765854,130.42,130.38,7.66966553]
[1765737765740,0.7,130.41,130.38,8.35966553]
[1765737765940,0.7,130.41,130.38,0.69]
[1765737766135,16.95916633,130.41,130.36,16.76086229]
[1765737766438,0.7,130.4,130.37,8.36043134]
[1765737771730,8.36878042,130.4,130.36,8.4]
[1765737771928,3.21207513,130.38,130.34,7.67215876]
[1765737772242,3.21207513,130.38,130.34,8.36215876]
[1765737772447,0.7,130.37,130.34,8.36215876]
[1765737778963,0.7,130.37,130.35,0.69]
[1765737781471,10.42730821,130.37,130.33,9.09]
[1765737781639,10.42730821,130.37,130.33,0.69]
[1765737781849,0.69,130.36,130.33,0.69]
[1765737783052,0.69,130.36,130.33,8.36270701]
[1765737783971,13.0470912,130.38,130.34,2.74671518]
[1765737784174,13.7370912,130.38,130.34,11.14671518]
[1765737784473,13.7370912,130.38,130.35,0.69]
[1765737785274,13.7370912,130.38,130.35,8.36151553]
[1765737785646,104.7,130.39,130.36,0.69]
[1765737785851,105.39,130.39,130.36,0.69]
[1765737786748,2.34103832,130.41,130.36,2.74671518]
[1765737786749,8.35829634,130.41,130.36,2.74671518]
[1765737787066,8.35829634,130.41,130.37,8.4]
[1765737787372,8.35829634,130.41,130.37,16.76015746]
[1765737787676,8.35829634,130.41,130.38,0.69]
[1765737795189,7.66829634,130.41,130.38,0.69]
[1765737795352,8.35829634,130.41,130.38,0.69]
[1765737801194,0.69,130.4,130.38,0.69]
[1765737801397,8.35829634,130.41,130.38,0.69]
[1765737811000,7.66829634,130.41,130.38,0.69]
[1765737811394,8.38829634,130.41,130.38,0.69]
[1765737814886,120.76764303,130.42,130.38,8.35979833]
[1765737815211,121.48764303,130.42,130.38,8.35979833]
[1765737815377,121.48764303,130.42,130.39,0.68]
[1765737820019,120.76764303,130.42,130.39,0.68]
[1765737820206,0.72,130.41,130.39,0.68]
[1765737823515,8.38831863,130.41,130.38,0.68]
[1765737824817,0.72,130.4,130.37,7.67030781]
[1765737825003,0.72,130.4,130.37,8.35030781]
[1765737825210,0.72,130.4,130.38,0.68]
[1765737825423,0.72,130.4,130.37,8.35030781]
[1765737826099,0.72,130.4,130.37,7.67030781]
[1765737826301,0.72,130.4,130.38,0.68]
[1765737828210,0.72,130.4,130.37,7.67030781]
[1765737828404,0.72,130.4,130.38,0.68]
[1765737829918,8.38831863,130.41,130.38,0.68]
[1765737830102,7.66831863,130.41,130.38,0.68]
[1765737830420,0.72,130.4,130.38,0.68]
[1765737832307,8.38831863,130.41,130.38,0.68]
[1765737836140,0.67,130.4,130.38,0.68]
[1765737838935,7.66831863,130.41,130.38,0.68]
[1765737839111,8.33831863,130.41,130.38,0.68]
[1765737839940,7.66831863,130.41,130.38,0.68]
[1765737840240,0.67,130.4,130.38,0.68]
[1765737840741,11.55090852,130.4,130.36,16.78081571]
[1765737840936,3.21199025,130.38,130.32,3.31199025]
[1765737841240,3.88199025,130.39,130.34,0.71]
[1765737841535,3.21199025,130.38,130.34,0.71]
[1765737841711,0.67,130.37,130.34,0.71]
[1765737841908,0.67,130.37,130.34,8.38210436]
[1765737842335,0.67,130.37,130.35,0.71]
[1765737843536,7.67018877,130.38,130.35,0.71]
[1765737843843,8.34018877,130.38,130.35,0.71]
[1765737853356,3.88199025,130.37,130.3,32.53260723]
[1765737853656,3.21199025,130.35,130.31,0.71]
[1765737853825,0.67,130.37,130.31,39.18077504]
[1765737854023,3.88199025,130.37,130.31,39.18077504]
[1765737854227,3.88199025,130.37,130.32,0.71]
[1765737854457,0.67,130.36,130.32,0.71]
[1765737855053,8.34129117,130.36,130.32,8.38314381]
[1765737855252,8.34129117,130.36,130.33,0.71]
[1765737857323,8.34166063,130.35,130.33,0.71]
[1765737857648,7.67166063,130.35,130.33,0.71]
[1765737865960,8.34166063,130.35,130.33,0.71]
[1765737867370,7.67166063,130.35,130.33,0.71]
[1765737872366,8.35130918,130.36,130.33,0.71]
[1765737872740,8.35130918,130.36,130.33,8.38282669]
[1765737873466,8.35130918,130.36,130.33,0.71]
[1765737889881,7.67130918,130.36,130.33,0.71]
[1765737890178,0.68,130.35,130.32,8.38316426]
[1765737890682,0.68,130.35,130.33,0.71]
[1765737891181,8.35175135,130.35,130.33,0.71]
[1765737896196,8.35175135,130.35,130.32,8.35316426]
[1765737896562,8.35175135,130.35,130.33,0.68]
[1765737896762,8.35175135,130.35,130.31,16.07377848]
[1765737896763,0.71,130.34,130.31,16.07377848]
[1765737897061,0.71,130.34,130.31,16.75377848]
[1765737897461,0.71,130.34,130.32,0.68]
[1765737899780,10.4391165,130.35,130.32,0.68]
[1765737899988,8.38175135,130.35,130.32,0.68]
[1765737900486,0.71,130.34,130.32,0.68]
[1765737900871,8.38175135,130.35,130.32,0.68]
[1765737901788,113.1,130.36,130.32,8.35327639]
[1765737902007,104.7,130.36,130.33,2.05736515]
[1765737902290,104.7,130.36,130.34,10.45736515]
[1765737902487,10.45736515,130.4,130.34,9.08]
[1765737902488,8.37888926,130.4,130.34,9.08]
[1765737902695,8.37888926,130.4,130.35,2.73736515]
[1765737903193,2.76736515,130.39,130.35,0.68]
[1765737903397,2.76736515,130.39,130.34,9.08]
[1765737903689,0.71,130.38,130.35,0.68]
[1765737904473,0.71,130.4,130.36,2.05736515]
[1765737904680,0.71,130.4,130.36,2.05580267]
[1765737904883,0.71,130.4,130.37,0.68]
[1765737905080,13.7570912,130.41,130.37,0.68]
[1765737905641,13.7570912,130.41,130.37,2.73580267]
[1765737905979,21.42524361,130.41,130.38,0.68]
[1765737910277,20.71524361,130.41,130.37,9.72586518]
[1765737910476,0.71,130.4,130.37,10.40586518]
[1765737910885,0.71,130.4,130.38,0.68]
[1765737912008,20.71524361,130.41,130.38,0.68]
[1765737912209,21.42524361,130.41,130.38,0.68]
[1765737913689,20.71524361,130.41,130.37,7.67006251]
[1765737913878,8.37878193,130.4,130.37,8.35006251]
[1765737914490,8.37878193,130.4,130.37,7.67006251]
[1765737914695,8.37878193,130.4,130.38,0.68]
[1765737914892,0.71,130.39,130.36,0.68]
[1765737916017,8.37937569,130.39,130.36,0.68]
[1765737917608,0.71,130.38,130.34,26.47785787]
[1765737917807,16.77890629,130.4,130.36,7.67096406]
[1765737918007,16.77890629,130.4,130.37,0.68]
[1765737919810,8.37890629,130.4,130.37,0.68]